fUSD/lending_fUSD_20240216
["ID","MTS","AMOUNT","RATE_DAILY","PERIOD"]
[314235787,1708114238458,-1422.53933,0.00035068,2]
[314235788,1708114238467,-4132.107171,0.00035068,2]
[314235789,1708114238477,-1115.008425,0.00035068,2]
[314235790,1708114238488,-2112.739185,0.00035068,2]
[314235791,1708114238508,-1488.74386,0.00035068,2]
[314235792,1708114238518,-1393.76053,0.00035068,2]
[314235793,1708114238529,-16970.458712,0.00035068,2]
[314235794,1708114238538,-1951.264743,0.00035068,2]
[314235795,1708114238547,-12547.941607,0.00035068,2]
[314235796,1708114238556,-1342.48055533,0.0003518,2]
[314235797,1708114238565,-2000.0,0.00035282,2]
[314235798,1708114238575,-200.0,0.00035282,2]
[314235799,1708114238584,-2000.0,0.00035282,2]
[314235800,1708114238593,-200.0,0.00035282,2]
[314235801,1708114238602,-8454.154576,0.00035342,2]
[314235802,1708114238612,-2230.016848,0.00035342,2]
[314235803,1708114238620,-1991.555063,0.00035342,2]
[314235804,1708114238630,-5784.95004,0.00035342,2]
[314235805,1708114238639,-1561.011795,0.00035342,2]
[314235806,1708114238648,-2957.834859,0.00035342,2]
[314235807,1708114238658,-2084.241405,0.00035342,2]
[314235808,1708114238668,-1951.264743,0.00035342,2]
[314235809,1708114238677,-23758.642197,0.00035342,2]
[314235810,1708114238686,-2731.77064,0.00035342,2]
[314235811,1708114238696,-17567.118249,0.00035342,2]
[314235812,1708114238705,-1649.79305873,0.00035385,7]
[314235813,1708114238715,-1342.48055538,0.00035395,2]
[314235814,1708114238724,-152.25469376,0.00035443,2]
[314235815,1708114238733,-150.0,0.00035448,2]
[314235816,1708114238742,-155.0,0.00035516,4]
[314235817,1708114238752,-202.79866518,0.00035516,8]
[314235818,1708114238761,-129760.0,0.00035533,2]
[314235819,1708114238770,-167.32,0.00035583,2]
[314235820,1708114238779,-1000.0,0.000356,2]
[314235821,1708114238789,-1000.0,0.000356,2]
[314235822,1708114238811,-1500.0,0.00035616,10]
[314235823,1708114238822,-2000.0,0.00035635,2]
[314235824,1708114238832,-200.0,0.00035635,2]
[314235825,1708114238842,-200.0,0.00035635,2]
[314235826,1708114238852,-2631.90009545,0.00035712,2]
[314235827,1708114238863,-196.38166492,0.00035792,8]
[314235828,1708114238873,-1010.75,0.00035798,2]
[314235829,1708114238883,-361.78,0.00035803,2]
[314235830,1708114238893,-242.0,0.00035856,7]
[314235831,1708114238903,-5127.69152417,0.00035892,8]
[314235832,1708114238916,-167.18687168,0.00035892,2]
[314235833,1708114238926,-518.01970828,0.00035899,7]
[314235834,1708114238936,-152.60143097,0.000359,2]
[314235835,1708114238946,-459.8825365,0.00035966,2]
[314235836,1708114238956,-2000.0,0.00035992,2]
[314235837,1708114238966,-200.0,0.00035992,2]
[314235838,1708114238975,-285.49656662,0.00035996,2]
[314235839,1708114238985,-9661.890944,0.00036,2]
[314235840,1708114238994,-2548.590684,0.00036,2]
[314235841,1708114239004,-2276.062929,0.00036,2]
[314235842,1708114239014,-6611.371474,0.00036,2]
[314235843,1708114239024,-1784.01348,0.00036,2]
[314235844,1708114239035,-3380.382696,0.00036,2]
[314235845,1708114239045,-2381.990177,0.00036,2]
[314235846,1708114239055,-2230.016849,0.00036,2]
[314235847,1708114239065,-27152.73394,0.00036,2]
[314235848,1708114239075,-3122.023589,0.00036,2]
[314235849,1708114239085,-20076.706571,0.00036,2]
[314235850,1708114239095,-205.0,0.00036,2]
[314235851,1708114239105,-155.67,0.00036006,2]
[314235852,1708114239118,-155.65,0.00036011,2]
[314235853,1708114239128,-1668.07,0.00036055,2]
[314235854,1708114239138,-930.54,0.00036194,2]
[314235855,1708114239148,-152.60143086,0.0003623,2]
[314235856,1708114239158,-152.25469376,0.00036275,2]
[314235857,1708114239167,-155.08,0.00036349,2]
[314235858,1708114239178,-2000.0,0.00036351,2]
[314235859,1708114239188,-200.0,0.00036351,2]
[314235860,1708114239198,-242.0,0.00036404,7]
[314235861,1708114239208,-162.82,0.00036428,2]
[314235862,1708114239218,-153.55127255,0.00036432,2]
[314235863,1708114239228,-11788.28830914,0.00036437,2]
[314235864,1708114239239,-200.0,0.00036506,3]
[314235865,1708114239248,-800.0,0.00036506,5]
[314235866,1708114239258,-152.60143086,0.0003656,2]
[314235867,1708114239268,-1649.79305873,0.00036638,8]
[314235868,1708114239278,-1261.509077,0.000367,2]
[314235869,1708114239288,-5127.69152407,0.00036711,9]
[314235870,1708114239297,-3502.43050985,0.00036727,13]
[314235871,1708114239307,-3790.63262964,0.00036727,13]
[314235872,1708114239316,-11354.01631568,0.00036727,13]
[314235873,1708114239326,-7836.61177899,0.00036736,13]
[314235874,1708114239335,-14750.33820464,0.00036753,12]
[314235875,1708114239344,-50000.0,0.00036753,15]
[314235876,1708114239354,-150.01,0.00036799,2]
[314235877,1708114239367,-3316.80182207,0.00036799,2]
[314235878,1708114239378,-9127.63759873,0.000368,2]
[314235879,1708114239387,-152.60143086,0.00036891,2]
[314235880,1708114239397,-19572.1341387,0.0003691,2]
[314235881,1708114239408,-242.0,0.00036952,7]
[314235882,1708114239417,-2768.0580697,0.00037,21]
[314235883,1708114239429,-200.0,0.00037064,5]
[314235884,1708114239440,-1010.75,0.00037075,2]
[314235885,1708114239450,-152.25469376,0.00037107,2]
[314235886,1708114239459,-152.60143086,0.00037221,2]
[314235887,1708114239469,-150.0,0.00037232,2]
[314235888,1708114239479,-300.0,0.00037232,7]
[314235889,1708114239491,-300.0,0.00037232,12]
[314235890,1708114239502,-459.8825365,0.00037237,2]
[314235891,1708114239512,-2631.90009545,0.00037291,2]
[314235892,1708114239522,-205.0,0.00037333,5]
[314235893,1708114239535,-361.78,0.00037359,2]
[314235894,1708114239545,-166.29,0.00037469,2]
[314235895,1708114239555,-242.0,0.000375,7]
[314235896,1708114239564,-150.0,0.00037511,2]
[314235897,1708114239575,-255.75924873,0.00037519,4]
[314235898,1708114239586,-5127.69152407,0.0003753,10]
[314235899,1708114239596,-152.60143086,0.00037551,2]
[314235900,1708114239606,-180.0,0.00037671,2]
[314235901,1708114239617,-1668.07,0.00037699,2]
[314235902,1708114239627,-666.0,0.00037799,2]
[314235903,1708114239637,-5916.41807169,0.000378,2]
[314235904,1708114239647,-155.67,0.0003782,2]
[314235905,1708114239656,-152.60143086,0.00037881,2]
[314235906,1708114239666,-1649.79305873,0.0003789,8]
[314235907,1708114239675,-1169.19227985,0.000379,3]
[314235908,1708114239686,-563681.198752,0.000379,3]
[314235909,1708114239695,-1008.82211059,0.00037919,3]
[314235910,1708114239705,-152.25469376,0.00037938,2]
[314235911,1708114239715,-16907.74821106,0.00038,3]
[314235912,1708114239725,-250.0,0.00038,2]
[314235913,1708114239734,-177.38,0.00038,2]
[314235914,1708114239744,-150.0,0.00038014,2]
[314235915,1708114239754,-150.0,0.00038035,2]
[314235916,1708114239764,-242.0,0.00038048,7]
[314235917,1708114239774,-360.0,0.00038107,2]
[314235918,1708114239784,-152.60143086,0.00038211,2]
[314235919,1708114239794,-150.0,0.00038264,2]
[314235920,1708114239803,-150.0,0.00038267,2]
[314235921,1708114239813,-200.0,0.0003827,3]
[314235922,1708114239822,-800.0,0.0003827,5]
[314235923,1708114239832,-250.0,0.00038274,2]
[314235924,1708114239841,-150.0,0.00038278,2]
[314235925,1708114239851,-150.0,0.0003832,2]
[314235926,1708114239861,-150.0,0.00038322,2]
[314235927,1708114239872,-5127.69152407,0.00038349,11]
[314235928,1708114239881,-1010.75,0.00038352,2]
[314235929,1708114239891,-1273.87009574,0.00038353,2]
[314235930,1708114239901,-156.288417,0.00038356,7]
[314235931,1708114239911,-151.0,0.00038356,7]
[314235932,1708114239922,-151.0,0.00038356,7]
[314235933,1708114239932,-151.0,0.00038356,7]
[314235934,1708114239942,-151.0,0.00038356,7]
[314235935,1708114239951,-151.0,0.00038356,7]
[314235936,1708114239961,-151.0,0.00038356,7]
[314235937,1708114239971,-151.0,0.00038356,7]
[314235938,1708114239981,-151.0,0.00038356,7]
[314235939,1708114239992,-151.0,0.00038356,7]
[314235940,1708114240002,-151.0,0.00038356,7]
[314235941,1708114240011,-151.0,0.00038356,7]
[314235942,1708114240021,-151.0,0.00038356,7]
[314235943,1708114240031,-151.0,0.00038356,7]
[314235944,1708114240040,-151.0,0.00038356,7]
[314235945,1708114240052,-151.0,0.00038356,7]
[314235946,1708114240062,-151.0,0.00038356,7]
[314235947,1708114240072,-151.0,0.00038356,7]
[314235948,1708114240082,-188.518083,0.00038356,7]
[314235949,1708114240091,-151.0,0.00038356,7]
[314235950,1708114240101,-859.72,0.00038356,15]
[314235951,1708114240111,-151.0,0.00038356,7]
[314235952,1708114240121,-151.0,0.00038356,7]
[314235953,1708114240130,-151.0,0.00038356,7]
[314235954,1708114240140,-151.0,0.00038356,7]
[314235955,1708114240149,-151.0,0.00038356,7]
[314235956,1708114240158,-151.0,0.00038356,7]
[314235957,1708114240168,-182.1,0.00038356,2]
[314235958,1708114240177,-151.0,0.00038356,7]
[314235959,1708114240187,-151.25,0.00038356,2]
[314235960,1708114240196,-151.0,0.00038356,7]
[314235961,1708114240206,-151.0,0.00038356,7]
[314235962,1708114240215,-151.0,0.00038356,7]
[314235963,1708114240224,-151.0,0.00038356,7]
[314235964,1708114240233,-151.0,0.00038356,7]
[314235965,1708114240243,-189.10516,0.00038356,7]
[314235966,1708114240252,-191.849121,0.00038356,7]
[314235967,1708114240262,-151.0,0.00038356,7]
[314235968,1708114240271,-151.0,0.00038356,7]
[314235969,1708114240281,-151.0,0.00038356,7]
[314235970,1708114240291,-151.0,0.00038356,7]
[314235971,1708114240301,-151.0,0.00038356,7]
[314235972,1708114240310,-151.0,0.00038356,7]
[314235973,1708114240321,-151.0,0.00038356,7]
[314235974,1708114240331,-151.0,0.00038356,7]
[314235975,1708114240341,-210.425388,0.00038356,7]
[314235976,1708114240350,-151.0,0.00038356,7]
[314235977,1708114240361,-151.0,0.00038356,7]
[314235978,1708114240371,-151.0,0.00038356,2]
[314235979,1708114240381,-151.0,0.00038356,2]
[314235980,1708114240390,-151.0,0.00038356,2]
[314235981,1708114240399,-151.0,0.00038356,2]
[314235982,1708114240409,-151.0,0.00038356,2]
[314235983,1708114240419,-151.0,0.00038356,2]
[314235984,1708114240429,-151.0,0.00038356,2]
[314235985,1708114240439,-151.0,0.00038356,2]
[314235986,1708114240449,-151.0,0.00038356,2]
[314235987,1708114240459,-151.0,0.00038356,7]
[314235988,1708114240469,-151.0,0.00038356,2]
[314235989,1708114240479,-151.0,0.00038356,2]
[314235990,1708114240491,-151.0,0.00038356,7]
[314235991,1708114240501,-151.0,0.00038356,2]
[314235992,1708114240510,-151.0,0.00038356,2]
[314235993,1708114240520,-151.0,0.00038356,2]
[314235994,1708114240530,-151.0,0.00038356,2]
[314235995,1708114240539,-151.0,0.00038356,2]
[314235996,1708114240549,-151.0,0.00038356,7]
[314235997,1708114240558,-151.0,0.00038356,7]
[314235998,1708114240568,-151.0,0.00038356,7]
[314235999,1708114240578,-151.0,0.00038356,7]
[314236000,1708114240591,-151.0,0.00038356,7]
[314236001,1708114240600,-295.498585,0.00038356,7]
[314236002,1708114240610,-11788.28830914,0.0003836,2]
[314236003,1708114240620,-19750.82656281,0.0003836,2]
[314236004,1708114240629,-1000.0,0.000384,2]
[314236005,1708114240638,-1000.0,0.000384,2]
[314236006,1708114240648,-930.54,0.00038458,2]
[314236007,1708114240658,-150.0,0.00038503,2]
[314236008,1708114240668,-459.8825365,0.00038509,2]
[314236009,1708114240677,-167.32,0.00038519,2]
[314236010,1708114240687,-150.0,0.00038529,2]
[314236011,1708114240697,-150.0,0.00038536,2]
[314236012,1708114240706,-152.60143086,0.00038542,2]
[314236013,1708114240716,-250.0,0.00038548,2]
[314236014,1708114240725,-177.38,0.00038548,2]
[314236015,1708114240734,-150.0,0.00038576,2]
[314236016,1708114240744,-242.0,0.00038596,7]
[314236017,1708114240753,-150.0,0.00038598,2]
[314236018,1708114240763,-150.0,0.00038599,2]
[314236019,1708114240773,-205.0,0.00038667,8]
[314236020,1708114240782,-150.0,0.00038675,2]
[314236021,1708114240791,-702.67840005,0.00038722,2]
[314236022,1708114240801,-150.0,0.0003873,2]
[314236023,1708114240810,-3293.94364583,0.00038763,2]
[314236024,1708114240820,-546.88165268,0.00038763,2]
[314236025,1708114240830,-2111.52532976,0.00038768,2]
[314236026,1708114240839,-152.25469376,0.0003877,2]
[314236027,1708114240849,-174.37222919,0.0003878,7]
[314236028,1708114240861,-13671.32128415,0.0003878,2]
[314236029,1708114241079,-250.0,0.00038822,2]
[314236030,1708114241090,-150.0,0.00038833,2]
[314236031,1708114241099,-150.0,0.0003884,2]
[314236032,1708114241110,-150.0,0.00038845,2]
[314236033,1708114241119,-151.0,0.0003885,2]
[314236034,1708114241129,-299.152805,0.0003885,2]
[314236035,1708114241139,-70460.149844,0.0003885,4]
[314236036,1708114241148,-150.0,0.00038863,2]
[314236037,1708114241158,-2631.90009545,0.0003887,2]
[314236038,1708114241168,-189.48792115,0.0003887,2]
[314236039,1708114241177,-202.68167586,0.0003887,2]
[314236040,1708114241187,-152.60143086,0.00038872,2]
[314236041,1708114241197,-344709.31142494,0.0003888,2]
[314236042,1708114241207,-151.0,0.0003888,2]
[314236044,1708114241217,-142531.47487986,0.000389,3]
[314236046,1708114241226,-1000.0,0.000389,7]
[314236047,1708114241236,-640.0,0.00038906,2]
[314236048,1708114241245,-150.0,0.00038987,2]
[314236049,1708114241255,-150.0,0.00039,2]
[314236051,1708114241264,-12634.46,0.00039,2]
[314236053,1708114241274,-150.0,0.0003902,2]
[314236054,1708114241283,-150.0,0.00039037,2]
[314236056,1708114241292,-150.0,0.00039064,2]
[314236057,1708114241302,-150.0,0.00039072,2]
[314236058,1708114241311,-150.0,0.00039089,2]
[314236059,1708114241321,-177.38,0.00039096,2]
[314236060,1708114241331,-150.0,0.000391,2]
[314236061,1708114241341,-2100.66159971,0.00039111,15]
[314236062,1708114241350,-150.0,0.00039115,2]
[314236063,1708114241360,-150.0,0.00039123,2]
[314236064,1708114241369,-1649.79305873,0.00039142,9]
[314236065,1708114241379,-242.0,0.00039144,7]
[314236066,1708114241388,-5127.69152407,0.00039168,12]
[314236067,1708114241398,-9683.34,0.00039178,2]
[314236068,1708114241407,-150.0,0.00039194,2]
[314236069,1708114241417,-152.60143086,0.00039202,3]
[314236070,1708114241426,-502.59,0.0003926,2]
[314236071,1708114241436,-150.0,0.00039265,2]
[314236072,1708114241445,-150.0,0.00039271,2]
[314236073,1708114241454,-150.0,0.0003928,2]
[314236074,1708114241464,-150.0,0.00039306,2]
[314236075,1708114241474,-150.0,0.00039313,2]
[314236076,1708114241483,-150.0,0.00039338,2]
[314236077,1708114241493,-1668.07,0.00039343,2]
[314236078,1708114241507,-155.08,0.00039378,2]
[314236079,1708114241525,-150.0,0.00039393,2]
[314236080,1708114241534,-150.0,0.00039487,2]
[314236081,1708114241544,-200.0,0.000395,30]
[314236082,1708114241553,-150.0,0.00039522,2]
[314236083,1708114241563,-152.60143086,0.00039532,4]
[314236084,1708114241572,-1000.0,0.00039543,2]
[314236085,1708114241582,-150.0,0.00039603,2]
[314236086,1708114241592,-150.0,0.00039614,2]
[314236087,1708114241602,-1010.75,0.0003963,2]
[314236088,1708114241613,-3000.0,0.00039633,2]
[314236089,1708114241622,-155.67,0.00039634,2]
[314236090,1708114241631,-151.25,0.00039635,2]
[314236091,1708114241641,-150.0,0.0003965,2]
[314236092,1708114241650,-150.0,0.00039652,2]
[314236093,1708114241660,-1000.0,0.00039657,2]
[314236094,1708114241669,-300.0,0.00039658,2]
[314236095,1708114241679,-242.0,0.00039692,7]
[314236096,1708114241689,-1000.0,0.00039771,2]
[314236097,1708114241699,-20000.0,0.0003978,2]
[314236098,1708114241709,-459.8825365,0.0003978,2]
[314236099,1708114241718,-534.43350034,0.0003978,2]
[314236100,1708114241728,-305.14,0.000398,2]
[314236101,1708114241738,-305.14,0.000398,2]
[314236102,1708114241747,-636.58,0.000398,2]
[314236103,1708114241757,-774.13,0.000398,2]
[314236104,1708114241766,-200.95,0.000398,30]
[314236105,1708114241776,-4882.2350284,0.000398,2]
[314236106,1708114241785,-2730.03,0.000398,2]
[314236107,1708114241795,-401.91,0.000398,2]
[314236108,1708114241804,-200.95,0.000398,2]
[314236109,1708114241814,-193.53,0.000398,30]
[314236110,1708114241824,-610.28,0.000398,30]
[314236111,1708114241834,-305.14,0.000398,2]
[314236112,1708114241844,-636.57,0.000398,30]
[314236113,1708114241854,-621.56,0.000398,2]
[314236114,1708114241865,-621.55,0.000398,30]
[314236115,1708114241875,-305.14,0.000398,30]
[314236116,1708114241884,-305.14,0.000398,30]
[314236117,1708114241895,-150.0,0.00039842,2]
[314236118,1708114241905,-17455.2706011,0.00039853,2]
[314236119,1708114241915,-152.60143086,0.00039862,6]
[314236120,1708114241925,-152.7485557,0.0003987,2]
[314236121,1708114241934,-205.82600955,0.0003987,7]
[314236122,1708114241944,-200.0,0.0003987,7]
[314236123,1708114241954,-8917.09067018,0.00039877,2]
[314236124,1708114241963,-150.0,0.00039879,2]
[314236125,1708114241973,-236.31716185,0.00039879,2]
[314236126,1708114241982,-236.31716185,0.00039879,2]
[314236127,1708114241993,-150.0,0.00039879,2]
[314236128,1708114242002,-236.31716185,0.00039879,2]
[314236129,1708114242012,-150.0,0.00039879,2]
[314236130,1708114242021,-1516728.46680779,0.0003988,5]
[314236131,1708114242031,-3531910.65848376,0.0003988,2]
[314236132,1708114242041,-28140.89241754,0.0003988,2]
[314236133,1708114242050,-400.5137823,0.00039886,2]
[314236134,1708114242060,-1241.01269705,0.00039891,2]
[314236135,1708114242069,-1000.0,0.00039899,2]
[314236136,1708114242078,-92480.41820322,0.000399,3]
[314236137,1708114242087,-145064.35761622,0.000399,2]
[314236138,1708114242097,-150.492989,0.000399,2]
[314236139,1708114242106,-150.0,0.0003991,2]
[314236140,1708114242116,-150.0,0.00039934,2]
[314236141,1708114242125,-1500.0,0.0003994,2]
[314236142,1708114242135,-237.0,0.00039974,2]
[314236143,1708114242144,-429.0,0.00039974,2]
[314236144,1708114242153,-1005.0,0.00039974,2]
[314236145,1708114242163,-858.0,0.00039974,2]
[314236146,1708114242172,-444.638,0.00039974,2]
[314236147,1708114242182,-321.0,0.00039974,2]
[314236148,1708114242192,-2871.0,0.00039974,2]
[314236149,1708114242201,-247.259,0.00039974,2]
[314236150,1708114242211,-1138.0,0.00039974,2]
[314236151,1708114242220,-2402.0,0.00039974,2]
[314236152,1708114242229,-585.745,0.00039974,2]
[314236153,1708114242238,-451.672,0.00039974,2]
[314236154,1708114242248,-19846.0,0.00039974,2]
[314236155,1708114242258,-2927.0,0.00039974,2]
[314236156,1708114242267,-5628.0,0.00039974,2]
[314236157,1708114242278,-2031.996,0.00039974,2]
[314236158,1708114242288,-28785.603,0.00039974,2]
[314236159,1708114242297,-2289.0,0.00039974,2]
[314236160,1708114242308,-8164.0,0.00039974,2]
[314236161,1708114242317,-4098.0,0.00039974,2]
[314236162,1708114242326,-184.721,0.00039974,2]
[314236163,1708114242335,-1037.0,0.00039974,2]
[314236164,1708114242344,-5127.69152407,0.00039987,13]
[314236165,1708114242354,-711.72,0.00039989,10]
[314236166,1708114242365,-199.55639065,0.00039999,31]
[314236167,1708114242374,-542.63943108,0.00039999,31]
[314236168,1708114242383,-500.0,0.00039999,31]
[314236169,1708114242393,-500.0,0.00039999,31]
[314236170,1708114242401,-628.05406174,0.00039999,31]
[314236171,1708114242410,-392.11521299,0.00039999,31]
[314236172,1708114242419,-312.88046878,0.00039999,31]
[314236173,1708114242428,-500.0,0.00039999,31]
[314236174,1708114242438,-500.0,0.00039999,31]
[314236175,1708114242447,-500.0,0.00039999,31]
[314236176,1708114242456,-500.0,0.00039999,31]
[314236177,1708114242466,-500.0,0.00039999,31]
[314236178,1708114242475,-500.0,0.00039999,31]
[314236179,1708114242485,-500.0,0.00039999,31]
[314236180,1708114242499,-500.0,0.00039999,31]
[314236181,1708114242508,-291.17373832,0.00039999,31]
[314236182,1708114242517,-500.0,0.00039999,31]
[314236183,1708114242526,-500.0,0.00039999,31]
[314236184,1708114242535,-500.0,0.00039999,31]
[314236185,1708114242545,-500.0,0.00039999,31]
[314236186,1708114242554,-454.7904541,0.00039999,31]
[314236187,1708114242564,-500.0,0.00039999,31]
[314236188,1708114242574,-500.0,0.00039999,31]
[314236189,1708114242584,-500.0,0.00039999,31]
[314236190,1708114242594,-500.0,0.00039999,31]
[314236191,1708114242603,-500.0,0.00039999,31]
[314236192,1708114242615,-500.0,0.00039999,31]
[314236193,1708114242625,-500.0,0.00039999,31]
[314236194,1708114242634,-500.0,0.00039999,31]
[314236195,1708114242644,-500.0,0.00039999,31]
[314236196,1708114242653,-500.0,0.00039999,31]
[314236197,1708114242663,-212.5455752,0.00039999,31]
[314236198,1708114242672,-500.0,0.00039999,31]
[314236199,1708114242681,-500.0,0.00039999,31]
[314236200,1708114242691,-500.0,0.00039999,31]
[314236201,1708114242700,-500.0,0.00039999,31]
[314236202,1708114242709,-500.0,0.00039999,31]
[314236203,1708114242719,-500.0,0.00039999,31]
[314236204,1708114242728,-500.0,0.00039999,31]
[314236205,1708114242737,-500.0,0.00039999,31]
[314236206,1708114242746,-500.0,0.00039999,31]
[314236207,1708114242755,-500.0,0.00039999,31]
[314236208,1708114242764,-500.0,0.00039999,31]
[314236209,1708114242773,-500.0,0.00039999,31]
[314236210,1708114242782,-500.0,0.00039999,31]
[314236211,1708114242792,-500.0,0.00039999,31]
[314236212,1708114242801,-500.0,0.00039999,31]
[314236213,1708114242810,-500.0,0.00039999,31]
[314236214,1708114242820,-500.0,0.00039999,31]
[314236215,1708114242829,-500.0,0.00039999,31]
[314236216,1708114242839,-500.0,0.00039999,31]
[314236217,1708114242848,-500.0,0.00039999,31]
[314236218,1708114242857,-500.0,0.00039999,31]
[314236219,1708114242867,-500.0,0.00039999,31]
[314236220,1708114242877,-500.0,0.00039999,31]
[314236221,1708114242886,-500.0,0.00039999,31]
[314236222,1708114242895,-500.0,0.00039999,31]
[314236223,1708114242904,-500.0,0.00039999,31]
[314236224,1708114242916,-500.0,0.00039999,31]
[314236225,1708114242925,-500.0,0.00039999,31]
[314236226,1708114242935,-500.0,0.00039999,31]
[314236227,1708114242945,-500.0,0.00039999,31]
[314236228,1708114242954,-500.0,0.00039999,31]
[314236229,1708114242964,-500.0,0.00039999,31]
[314236230,1708114242973,-500.0,0.00039999,31]
[314236231,1708114242982,-500.0,0.00039999,31]
[314236232,1708114242991,-500.0,0.00039999,31]
[314236233,1708114243001,-500.0,0.00039999,31]
[314236234,1708114243011,-500.0,0.00039999,31]
[314236235,1708114243020,-500.0,0.00039999,31]
[314236236,1708114243029,-500.0,0.00039999,31]
[314236237,1708114243039,-500.0,0.00039999,31]
[314236238,1708114243047,-500.0,0.00039999,31]
[314236239,1708114243057,-500.0,0.00039999,31]
[314236240,1708114243066,-500.0,0.00039999,31]
[314236241,1708114243075,-500.0,0.00039999,31]
[314236242,1708114243085,-500.0,0.00039999,31]
[314236243,1708114243094,-221.1692355,0.00039999,31]
[314236244,1708114243104,-232.55975617,0.00039999,31]
[314236245,1708114243114,-500.0,0.00039999,31]
[314236246,1708114243124,-500.0,0.00039999,31]
[314236247,1708114243133,-500.0,0.00039999,31]
[314236248,1708114243143,-500.0,0.00039999,31]
[314236249,1708114243152,-500.0,0.00039999,31]
[314236250,1708114243162,-500.0,0.00039999,31]
[314236251,1708114243171,-500.0,0.00039999,31]
[314236252,1708114243180,-500.0,0.00039999,31]
[314236253,1708114243190,-500.0,0.00039999,31]
[314236254,1708114243198,-500.0,0.00039999,31]
[314236255,1708114243208,-164.98242895,0.00039999,31]
[314236256,1708114243217,-500.0,0.00039999,31]
[314236257,1708114243226,-500.0,0.00039999,31]
[314236258,1708114243236,-500.0,0.00039999,31]
[314236259,1708114243246,-500.0,0.00039999,31]
[314236260,1708114243255,-500.0,0.00039999,31]
[314236261,1708114243264,-500.0,0.00039999,31]
[314236262,1708114243273,-500.0,0.00039999,31]
[314236263,1708114243283,-500.0,0.00039999,31]
[314236264,1708114243292,-407.307795,0.00039999,31]
[314236265,1708114243301,-500.0,0.00039999,31]
[314236266,1708114243311,-500.0,0.00039999,31]
[314236267,1708114243319,-500.0,0.00039999,31]
[314236268,1708114243328,-500.0,0.00039999,31]
[314236269,1708114243337,-500.0,0.00039999,31]
[314236270,1708114243346,-500.0,0.00039999,31]
[314236271,1708114243355,-500.0,0.00039999,31]
[314236272,1708114243365,-500.0,0.00039999,31]
[314236273,1708114243374,-500.0,0.00039999,31]
[314236274,1708114243384,-500.0,0.00039999,31]
[314236275,1708114243393,-500.0,0.00039999,31]
[314236276,1708114243402,-500.0,0.00039999,31]
[314236277,1708114243411,-500.0,0.00039999,31]
[314236278,1708114243421,-500.0,0.00039999,31]
[314236279,1708114243429,-500.0,0.00039999,31]
[314236280,1708114243438,-500.0,0.00039999,31]
[314236281,1708114243447,-500.0,0.00039999,31]
[314236282,1708114243456,-236.31716185,0.00039999,2]
[314236283,1708114243466,-150.0,0.00039999,2]
[314236284,1708114243476,-17683.70910482,0.0004,10]
[314236285,1708114243485,-671.70995584,0.0004,30]
[314236286,1708114243495,-254.18685658,0.0004,2]
[314236287,1708114243509,-800.24575574,0.0004,4]
[314236288,1708114243519,-255.0,0.0004,12]
[314236289,1708114243530,-499383.36108158,0.0004,30]
[314236290,1708114243539,-570.03931749,0.0004,2]
[314236291,1708114243548,-2779.66160561,0.0004,7]